{"text_format":"3","workbook":"xlsx","n_sheets":6,"sheets":["Projekt","Zadáváni údajů","Výsledek","Krokový výpočet","Evapotranspirace - poznámky","Pracovní"],"not_rendered":{"charts":3,"images":7,"comments":1},"read":"whole","date_system":"1900"}

{"sheet":"Projekt","index":0,"n_rows":51,"n_cols":19,"rows_kept":51,"merged":[[0,0,0,10],[0,12,0,15],[2,0,2,11],[4,0,4,16],[50,0,50,6]]}
["Výpočetní prostředí pro specifikaci vlivu změny hladiny v blízkosti otevřené vodoteče.",{"$nulls":11}," ČZU, FŽP, KBÚK   2011 ©",{"$nulls":5},"                             "]
[]
["Programový produkt je součástí výstupů grantu Ministerstva zemědělství QH82126 s názvem:"]
[]
["Metodika návrhu a realizace infiltračních a záchytných opatření v rámci obnovy hydrologických poměrů a způsobů hospodaření v krajině."]
{"$rows_empty":45}
["Výpočetní prostředí je realizováno prázdnou šablonou Microsoft Excel 2010."]

{"sheet":"Zadáváni údajů","index":1,"n_rows":25,"n_cols":7,"rows_kept":25,"merged":[[2,1,2,4],[8,2,8,4],[10,2,10,4],[12,2,12,4],[14,2,14,4],[16,2,16,4],[18,2,18,4],[22,2,22,4],[24,2,24,4],[48,6,48,8]]}
[]
[]
[null,"Zadávání vstupních údajů"]
[]
[]
[]
[null,"Symbol","Popis",null,null,"Jednotky","Hodnota"]
[]
[null,"H0","Původní výška hladiny",null,null,"m"]
[]
[null,"H1","Zvýšená/snížená výška hladiny",null,null,"m"]
[]
[null,"K","Hydraulická vodivost",null,null,"m/den"]
[]
[null,"Pd","Efektivní drenážní porovitost",null,null,"( -  )"]
[]
[null,"t","Čas (období)",null,null,"dny"]
[]
[null,"x","Vzdálenost",null,null,"m"]
[]
[]
[]
[null,"R","Suma srážek za období",null,null,"mm/období"]
[]
[null,"E","Suma evapotranspirace za období",null,null,"mm/období"]

{"sheet":"Výsledek","index":2,"n_rows":7,"n_cols":13,"rows_kept":7,"merged":[[1,1,1,5],[1,9,1,11],[3,2,3,4],[3,9,3,10],[4,9,4,10],[6,9,6,10]]}
[]
[null,"Doplňující pomocné hodnoty",{"$nulls":7},"Výsledné hodnoty"]
[]
[null,"Symbol","Popis",null,null,"Jednotky","Hodnota:",null,null,"Hladina vody za",null,{"$f":"'Zadáváni údajů'!G17","v":0},"dní"]
[null,"Hµ","průměrná výše hladiny ",null,null,"m",{"$f":"('Zadáváni údajů'!G9+'Zadáváni údajů'!G11)/2","v":0},null,null,"ve vzdálenosti",null,{"$f":"'Zadáváni údajů'!G19","v":0},"metrů"]
[null,"D","parametr (konstanta)",null,null,"m2/den",{"$f":"IF(ISERR('Zadáváni údajů'!G13*G5/'Zadáváni údajů'!G15),0,'Zadáváni údajů'!G13*G5/'Zadáváni údajů'!G15)","v":0}]
[null,"argument chybové funkce",{"$nulls":3},"(-)",{"$f":"IF(ISERR('Zadáváni údajů'!G19/(2*SQRT(G6*'Zadáváni údajů'!G17))),0,'Zadáváni údajů'!G19/(2*SQRT(G6*'Zadáváni údajů'!G17)))","v":0},null,null,"je ve výši",null,{"$f":"IF(G7=0,0,'Zadáváni údajů'!G11+('Zadáváni údajů'!G9-'Zadáváni údajů'!G11)*ERF(Výsledek!G7)+('Zadáváni údajů'!G23/1000)/'Zadáváni údajů'!G15-('Zadáváni údajů'!G25/1000)/'Zadáváni údajů'!G15)","v":0},"metrů."]

{"sheet":"Krokový výpočet","index":3,"n_rows":16,"n_cols":13,"rows_kept":16,"merged":[[1,1,1,4],[3,1,5,2],[3,3,3,12],[3,13,5,13]]}
[]
[null,"Detailní krokový výpočet"]
[]
[null,"vzdálenost (m)",null,"čas (dny)"]
[{"$nulls":3},"t0","t1","t2","t3","t4","t5","t6","t7","t8","t9"]
[{"$nulls":3},{"$f":"('Zadáváni údajů'!G17)/10","v":0},{"$f":"D6+D6","v":0},{"$f":"E6+D6","v":0},{"$f":"F6+D6","v":0},{"$f":"G6+D6","v":0},{"$f":"H6+D6","v":0},{"$f":"I6++D6","v":0},{"$f":"J6+D6","v":0},{"$f":"K6+D6","v":0},{"$f":"L6+D6","v":0}]
[null,"x0",{"$f":"('Zadáváni údajů'!G19)/10","v":0},{"$f":"IF(OR('Zadáváni údajů'!G17=\"\",'Zadáváni údajů'!G17=0),0,'Zadáváni údajů'!G11+('Zadáváni údajů'!G9-'Zadáváni údajů'!G11)*ERF(Pracovní!D9)+('Zadáváni údajů'!G23/1000)/'Zadáváni údajů'!G15-('Zadáváni údajů'!G25/1000)/'Zadáváni údajů'!G15)","v":0},{"$f":"IF(OR('Zadáváni údajů'!G17=\"\",'Zadáváni údajů'!G17=0),0,'Zadáváni údajů'!G11+('Zadáváni údajů'!G9-'Zadáváni údajů'!G11)*ERF(Pracovní!E9)+('Zadáváni údajů'!G23/1000)/'Zadáváni údajů'!G15-('Zadáváni údajů'!G25/1000)/'Zadáváni údajů'!G15)","v":0},{"$f":"IF(OR('Zadáváni údajů'!G17=\"\",'Zadáváni údajů'!G17=0),0,'Zadáváni údajů'!G11+('Zadáváni údajů'!G9-'Zadáváni údajů'!G11)*ERF(Pracovní!F9)+('Zadáváni údajů'!G23/1000)/'Zadáváni údajů'!G15-('Zadáváni údajů'!G25/1000)/'Zadáváni údajů'!G15)","v":0},{"$f":"IF(OR('Zadáváni údajů'!G17=\"\",'Zadáváni údajů'!G17=0),0,'Zadáváni údajů'!G11+('Zadáváni údajů'!G9-'Zadáváni údajů'!G11)*ERF(Pracovní!G9)+('Zadáváni údajů'!G23/1000)/'Zadáváni údajů'!G15-('Zadáváni údajů'!G25/1000)/'Zadáváni údajů'!G15)","v":0},{"$f":"IF(OR('Zadáváni údajů'!G17=\"\",'Zadáváni údajů'!G17=0),0,'Zadáváni údajů'!G11+('Zadáváni údajů'!G9-'Zadáváni údajů'!G11)*ERF(Pracovní!H9)+('Zadáváni údajů'!G23/1000)/'Zadáváni údajů'!G15-('Zadáváni údajů'!G25/1000)/'Zadáváni údajů'!G15)","v":0},{"$f":"IF(OR('Zadáváni údajů'!G17=\"\",'Zadáváni údajů'!G17=0),0,'Zadáváni údajů'!G11+('Zadáváni údajů'!G9-'Zadáváni údajů'!G11)*ERF(Pracovní!I9)+('Zadáváni údajů'!G23/1000)/'Zadáváni údajů'!G15-('Zadáváni údajů'!G25/1000)/'Zadáváni údajů'!G15)","v":0},{"$f":"IF(OR('Zadáváni údajů'!G17=\"\",'Zadáváni údajů'!G17=0),0,'Zadáváni údajů'!G11+('Zadáváni údajů'!G9-'Zadáváni údajů'!G11)*ERF(Pracovní!J9)+('Zadáváni údajů'!G23/1000)/'Zadáváni údajů'!G15-('Zadáváni údajů'!G25/1000)/'Zadáváni údajů'!G15)","v":0},{"$f":"IF(OR('Zadáváni údajů'!G17=\"\",'Zadáváni údajů'!G17=0),0,'Zadáváni údajů'!G11+('Zadáváni údajů'!G9-'Zadáváni údajů'!G11)*ERF(Pracovní!K9)+('Zadáváni údajů'!G23/1000)/'Zadáváni údajů'!G15-('Zadáváni údajů'!G25/1000)/'Zadáváni údajů'!G15)","v":0},{"$f":"IF(OR('Zadáváni údajů'!G17=\"\",'Zadáváni údajů'!G17=0),0,'Zadáváni údajů'!G11+('Zadáváni údajů'!G9-'Zadáváni údajů'!G11)*ERF(Pracovní!L9)+('Zadáváni údajů'!G23/1000)/'Zadáváni údajů'!G15-('Zadáváni údajů'!G25/1000)/'Zadáváni údajů'!G15)","v":0},{"$f":"IF(OR('Zadáváni údajů'!G17=\"\",'Zadáváni údajů'!G17=0),0,'Zadáváni údajů'!G11+('Zadáváni údajů'!G9-'Zadáváni údajů'!G11)*ERF(Pracovní!M9)+('Zadáváni údajů'!G23/1000)/'Zadáváni údajů'!G15-('Zadáváni údajů'!G25/1000)/'Zadáváni údajů'!G15)","v":0}]
[null,"x1",{"$f":"C7+C7","v":0},{"$f":"IF(OR('Zadáváni údajů'!G17=\"\",'Zadáváni údajů'!G17=0),0,'Zadáváni údajů'!G11+('Zadáváni údajů'!G9-'Zadáváni údajů'!G11)*ERF(Pracovní!D10)+('Zadáváni údajů'!G23/1000)/'Zadáváni údajů'!G15-('Zadáváni údajů'!G25/1000)/'Zadáváni údajů'!G15)","v":0},{"$f":"IF(OR('Zadáváni údajů'!G17=\"\",'Zadáváni údajů'!G17=0),0,'Zadáváni údajů'!G11+('Zadáváni údajů'!G9-'Zadáváni údajů'!G11)*ERF(Pracovní!E10)+('Zadáváni údajů'!G23/1000)/'Zadáváni údajů'!G15-('Zadáváni údajů'!G25/1000)/'Zadáváni údajů'!G15)","v":0},{"$f":"IF(OR('Zadáváni údajů'!G17=\"\",'Zadáváni údajů'!G17=0),0,'Zadáváni údajů'!G11+('Zadáváni údajů'!G9-'Zadáváni údajů'!G11)*ERF(Pracovní!F10)+('Zadáváni údajů'!G23/1000)/'Zadáváni údajů'!G15-('Zadáváni údajů'!G25/1000)/'Zadáváni údajů'!G15)","v":0},{"$f":"IF(OR('Zadáváni údajů'!G17=\"\",'Zadáváni údajů'!G17=0),0,'Zadáváni údajů'!G11+('Zadáváni údajů'!G9-'Zadáváni údajů'!G11)*ERF(Pracovní!G10)+('Zadáváni údajů'!G23/1000)/'Zadáváni údajů'!G15-('Zadáváni údajů'!G25/1000)/'Zadáváni údajů'!G15)","v":0},{"$f":"IF(OR('Zadáváni údajů'!G17=\"\",'Zadáváni údajů'!G17=0),0,'Zadáváni údajů'!G11+('Zadáváni údajů'!G9-'Zadáváni údajů'!G11)*ERF(Pracovní!H10)+('Zadáváni údajů'!G23/1000)/'Zadáváni údajů'!G15-('Zadáváni údajů'!G25/1000)/'Zadáváni údajů'!G15)","v":0},{"$f":"IF(OR('Zadáváni údajů'!G17=\"\",'Zadáváni údajů'!G17=0),0,'Zadáváni údajů'!G11+('Zadáváni údajů'!G9-'Zadáváni údajů'!G11)*ERF(Pracovní!I10)+('Zadáváni údajů'!G23/1000)/'Zadáváni údajů'!G15-('Zadáváni údajů'!G25/1000)/'Zadáváni údajů'!G15)","v":0},{"$f":"IF(OR('Zadáváni údajů'!G17=\"\",'Zadáváni údajů'!G17=0),0,'Zadáváni údajů'!G11+('Zadáváni údajů'!G9-'Zadáváni údajů'!G11)*ERF(Pracovní!J10)+('Zadáváni údajů'!G23/1000)/'Zadáváni údajů'!G15-('Zadáváni údajů'!G25/1000)/'Zadáváni údajů'!G15)","v":0},{"$f":"IF(OR('Zadáváni údajů'!G17=\"\",'Zadáváni údajů'!G17=0),0,'Zadáváni údajů'!G11+('Zadáváni údajů'!G9-'Zadáváni údajů'!G11)*ERF(Pracovní!K10)+('Zadáváni údajů'!G23/1000)/'Zadáváni údajů'!G15-('Zadáváni údajů'!G25/1000)/'Zadáváni údajů'!G15)","v":0},{"$f":"IF(OR('Zadáváni údajů'!G17=\"\",'Zadáváni údajů'!G17=0),0,'Zadáváni údajů'!G11+('Zadáváni údajů'!G9-'Zadáváni údajů'!G11)*ERF(Pracovní!L10)+('Zadáváni údajů'!G23/1000)/'Zadáváni údajů'!G15-('Zadáváni údajů'!G25/1000)/'Zadáváni údajů'!G15)","v":0},{"$f":"IF(OR('Zadáváni údajů'!G17=\"\",'Zadáváni údajů'!G17=0),0,'Zadáváni údajů'!G11+('Zadáváni údajů'!G9-'Zadáváni údajů'!G11)*ERF(Pracovní!M10)+('Zadáváni údajů'!G23/1000)/'Zadáváni údajů'!G15-('Zadáváni údajů'!G25/1000)/'Zadáváni údajů'!G15)","v":0}]
[null,"x2",{"$f":"C8+C7","v":0},{"$f":"IF(OR('Zadáváni údajů'!G17=\"\",'Zadáváni údajů'!G17=0),0,'Zadáváni údajů'!G11+('Zadáváni údajů'!G9-'Zadáváni údajů'!G11)*ERF(Pracovní!D11)+('Zadáváni údajů'!G23/1000)/'Zadáváni údajů'!G15-('Zadáváni údajů'!G25/1000)/'Zadáváni údajů'!G15)","v":0},{"$f":"IF(OR('Zadáváni údajů'!G17=\"\",'Zadáváni údajů'!G17=0),0,'Zadáváni údajů'!G11+('Zadáváni údajů'!G9-'Zadáváni údajů'!G11)*ERF(Pracovní!E11)+('Zadáváni údajů'!G23/1000)/'Zadáváni údajů'!G15-('Zadáváni údajů'!G25/1000)/'Zadáváni údajů'!G15)","v":0},{"$f":"IF(OR('Zadáváni údajů'!G17=\"\",'Zadáváni údajů'!G17=0),0,'Zadáváni údajů'!G11+('Zadáváni údajů'!G9-'Zadáváni údajů'!G11)*ERF(Pracovní!F11)+('Zadáváni údajů'!G23/1000)/'Zadáváni údajů'!G15-('Zadáváni údajů'!G25/1000)/'Zadáváni údajů'!G15)","v":0},{"$f":"IF(OR('Zadáváni údajů'!G17=\"\",'Zadáváni údajů'!G17=0),0,'Zadáváni údajů'!G11+('Zadáváni údajů'!G9-'Zadáváni údajů'!G11)*ERF(Pracovní!G11)+('Zadáváni údajů'!G23/1000)/'Zadáváni údajů'!G15-('Zadáváni údajů'!G25/1000)/'Zadáváni údajů'!G15)","v":0},{"$f":"IF(OR('Zadáváni údajů'!G17=\"\",'Zadáváni údajů'!G17=0),0,'Zadáváni údajů'!G11+('Zadáváni údajů'!G9-'Zadáváni údajů'!G11)*ERF(Pracovní!H11)+('Zadáváni údajů'!G23/1000)/'Zadáváni údajů'!G15-('Zadáváni údajů'!G25/1000)/'Zadáváni údajů'!G15)","v":0},{"$f":"IF(OR('Zadáváni údajů'!G17=\"\",'Zadáváni údajů'!G17=0),0,'Zadáváni údajů'!G11+('Zadáváni údajů'!G9-'Zadáváni údajů'!G11)*ERF(Pracovní!I11)+('Zadáváni údajů'!G23/1000)/'Zadáváni údajů'!G15-('Zadáváni údajů'!G25/1000)/'Zadáváni údajů'!G15)","v":0},{"$f":"IF(OR('Zadáváni údajů'!G17=\"\",'Zadáváni údajů'!G17=0),0,'Zadáváni údajů'!G11+('Zadáváni údajů'!G9-'Zadáváni údajů'!G11)*ERF(Pracovní!J11)+('Zadáváni údajů'!G23/1000)/'Zadáváni údajů'!G15-('Zadáváni údajů'!G25/1000)/'Zadáváni údajů'!G15)","v":0},{"$f":"IF(OR('Zadáváni údajů'!G17=\"\",'Zadáváni údajů'!G17=0),0,'Zadáváni údajů'!G11+('Zadáváni údajů'!G9-'Zadáváni údajů'!G11)*ERF(Pracovní!K11)+('Zadáváni údajů'!G23/1000)/'Zadáváni údajů'!G15-('Zadáváni údajů'!G25/1000)/'Zadáváni údajů'!G15)","v":0},{"$f":"IF(OR('Zadáváni údajů'!G17=\"\",'Zadáváni údajů'!G17=0),0,'Zadáváni údajů'!G11+('Zadáváni údajů'!G9-'Zadáváni údajů'!G11)*ERF(Pracovní!L11)+('Zadáváni údajů'!G23/1000)/'Zadáváni údajů'!G15-('Zadáváni údajů'!G25/1000)/'Zadáváni údajů'!G15)","v":0},{"$f":"IF(OR('Zadáváni údajů'!G17=\"\",'Zadáváni údajů'!G17=0),0,'Zadáváni údajů'!G11+('Zadáváni údajů'!G9-'Zadáváni údajů'!G11)*ERF(Pracovní!M11)+('Zadáváni údajů'!G23/1000)/'Zadáváni údajů'!G15-('Zadáváni údajů'!G25/1000)/'Zadáváni údajů'!G15)","v":0}]
[null,"x3",{"$f":"C9+C7","v":0},{"$f":"IF(OR('Zadáváni údajů'!G17=\"\",'Zadáváni údajů'!G17=0),0,'Zadáváni údajů'!G11+('Zadáváni údajů'!G9-'Zadáváni údajů'!G11)*ERF(Pracovní!D12)+('Zadáváni údajů'!G23/1000)/'Zadáváni údajů'!G15-('Zadáváni údajů'!G25/1000)/'Zadáváni údajů'!G15)","v":0},{"$f":"IF(OR('Zadáváni údajů'!G17=\"\",'Zadáváni údajů'!G17=0),0,'Zadáváni údajů'!G11+('Zadáváni údajů'!G9-'Zadáváni údajů'!G11)*ERF(Pracovní!E12)+('Zadáváni údajů'!G23/1000)/'Zadáváni údajů'!G15-('Zadáváni údajů'!G25/1000)/'Zadáváni údajů'!G15)","v":0},{"$f":"IF(OR('Zadáváni údajů'!G17=\"\",'Zadáváni údajů'!G17=0),0,'Zadáváni údajů'!G11+('Zadáváni údajů'!G9-'Zadáváni údajů'!G11)*ERF(Pracovní!F12)+('Zadáváni údajů'!G23/1000)/'Zadáváni údajů'!G15-('Zadáváni údajů'!G25/1000)/'Zadáváni údajů'!G15)","v":0},{"$f":"IF(OR('Zadáváni údajů'!G17=\"\",'Zadáváni údajů'!G17=0),0,'Zadáváni údajů'!G11+('Zadáváni údajů'!G9-'Zadáváni údajů'!G11)*ERF(Pracovní!G12)+('Zadáváni údajů'!G23/1000)/'Zadáváni údajů'!G15-('Zadáváni údajů'!G25/1000)/'Zadáváni údajů'!G15)","v":0},{"$f":"IF(OR('Zadáváni údajů'!G17=\"\",'Zadáváni údajů'!G17=0),0,'Zadáváni údajů'!G11+('Zadáváni údajů'!G9-'Zadáváni údajů'!G11)*ERF(Pracovní!H12)+('Zadáváni údajů'!G23/1000)/'Zadáváni údajů'!G15-('Zadáváni údajů'!G25/1000)/'Zadáváni údajů'!G15)","v":0},{"$f":"IF(OR('Zadáváni údajů'!G17=\"\",'Zadáváni údajů'!G17=0),0,'Zadáváni údajů'!G11+('Zadáváni údajů'!G9-'Zadáváni údajů'!G11)*ERF(Pracovní!I12)+('Zadáváni údajů'!G23/1000)/'Zadáváni údajů'!G15-('Zadáváni údajů'!G25/1000)/'Zadáváni údajů'!G15)","v":0},{"$f":"IF(OR('Zadáváni údajů'!G17=\"\",'Zadáváni údajů'!G17=0),0,'Zadáváni údajů'!G11+('Zadáváni údajů'!G9-'Zadáváni údajů'!G11)*ERF(Pracovní!J12)+('Zadáváni údajů'!G23/1000)/'Zadáváni údajů'!G15-('Zadáváni údajů'!G25/1000)/'Zadáváni údajů'!G15)","v":0},{"$f":"IF(OR('Zadáváni údajů'!G17=\"\",'Zadáváni údajů'!G17=0),0,'Zadáváni údajů'!G11+('Zadáváni údajů'!G9-'Zadáváni údajů'!G11)*ERF(Pracovní!K12)+('Zadáváni údajů'!G23/1000)/'Zadáváni údajů'!G15-('Zadáváni údajů'!G25/1000)/'Zadáváni údajů'!G15)","v":0},{"$f":"IF(OR('Zadáváni údajů'!G17=\"\",'Zadáváni údajů'!G17=0),0,'Zadáváni údajů'!G11+('Zadáváni údajů'!G9-'Zadáváni údajů'!G11)*ERF(Pracovní!L12)+('Zadáváni údajů'!G23/1000)/'Zadáváni údajů'!G15-('Zadáváni údajů'!G25/1000)/'Zadáváni údajů'!G15)","v":0},{"$f":"IF(OR('Zadáváni údajů'!G17=\"\",'Zadáváni údajů'!G17=0),0,'Zadáváni údajů'!G11+('Zadáváni údajů'!G9-'Zadáváni údajů'!G11)*ERF(Pracovní!M12)+('Zadáváni údajů'!G23/1000)/'Zadáváni údajů'!G15-('Zadáváni údajů'!G25/1000)/'Zadáváni údajů'!G15)","v":0}]
[null,"x4",{"$f":"C10+C7","v":0},{"$f":"IF(OR('Zadáváni údajů'!G17=\"\",'Zadáváni údajů'!G17=0),0,'Zadáváni údajů'!G11+('Zadáváni údajů'!G9-'Zadáváni údajů'!G11)*ERF(Pracovní!D13)+('Zadáváni údajů'!G23/1000)/'Zadáváni údajů'!G15-('Zadáváni údajů'!G25/1000)/'Zadáváni údajů'!G15)","v":0},{"$f":"IF(OR('Zadáváni údajů'!G17=\"\",'Zadáváni údajů'!G17=0),0,'Zadáváni údajů'!G11+('Zadáváni údajů'!G9-'Zadáváni údajů'!G11)*ERF(Pracovní!E13)+('Zadáváni údajů'!G23/1000)/'Zadáváni údajů'!G15-('Zadáváni údajů'!G25/1000)/'Zadáváni údajů'!G15)","v":0},{"$f":"IF(OR('Zadáváni údajů'!G17=\"\",'Zadáváni údajů'!G17=0),0,'Zadáváni údajů'!G11+('Zadáváni údajů'!G9-'Zadáváni údajů'!G11)*ERF(Pracovní!F13)+('Zadáváni údajů'!G23/1000)/'Zadáváni údajů'!G15-('Zadáváni údajů'!G25/1000)/'Zadáváni údajů'!G15)","v":0},{"$f":"IF(OR('Zadáváni údajů'!G17=\"\",'Zadáváni údajů'!G17=0),0,'Zadáváni údajů'!G11+('Zadáváni údajů'!G9-'Zadáváni údajů'!G11)*ERF(Pracovní!G13)+('Zadáváni údajů'!G23/1000)/'Zadáváni údajů'!G15-('Zadáváni údajů'!G25/1000)/'Zadáváni údajů'!G15)","v":0},{"$f":"IF(OR('Zadáváni údajů'!G17=\"\",'Zadáváni údajů'!G17=0),0,'Zadáváni údajů'!G11+('Zadáváni údajů'!G9-'Zadáváni údajů'!G11)*ERF(Pracovní!H13)+('Zadáváni údajů'!G23/1000)/'Zadáváni údajů'!G15-('Zadáváni údajů'!G25/1000)/'Zadáváni údajů'!G15)","v":0},{"$f":"IF(OR('Zadáváni údajů'!G17=\"\",'Zadáváni údajů'!G17=0),0,'Zadáváni údajů'!G11+('Zadáváni údajů'!G9-'Zadáváni údajů'!G11)*ERF(Pracovní!I13)+('Zadáváni údajů'!G23/1000)/'Zadáváni údajů'!G15-('Zadáváni údajů'!G25/1000)/'Zadáváni údajů'!G15)","v":0},{"$f":"IF(OR('Zadáváni údajů'!G17=\"\",'Zadáváni údajů'!G17=0),0,'Zadáváni údajů'!G11+('Zadáváni údajů'!G9-'Zadáváni údajů'!G11)*ERF(Pracovní!J13)+('Zadáváni údajů'!G23/1000)/'Zadáváni údajů'!G15-('Zadáváni údajů'!G25/1000)/'Zadáváni údajů'!G15)","v":0},{"$f":"IF(OR('Zadáváni údajů'!G17=\"\",'Zadáváni údajů'!G17=0),0,'Zadáváni údajů'!G11+('Zadáváni údajů'!G9-'Zadáváni údajů'!G11)*ERF(Pracovní!K13)+('Zadáváni údajů'!G23/1000)/'Zadáváni údajů'!G15-('Zadáváni údajů'!G25/1000)/'Zadáváni údajů'!G15)","v":0},{"$f":"IF(OR('Zadáváni údajů'!G17=\"\",'Zadáváni údajů'!G17=0),0,'Zadáváni údajů'!G11+('Zadáváni údajů'!G9-'Zadáváni údajů'!G11)*ERF(Pracovní!L13)+('Zadáváni údajů'!G23/1000)/'Zadáváni údajů'!G15-('Zadáváni údajů'!G25/1000)/'Zadáváni údajů'!G15)","v":0},{"$f":"IF(OR('Zadáváni údajů'!G17=\"\",'Zadáváni údajů'!G17=0),0,'Zadáváni údajů'!G11+('Zadáváni údajů'!G9-'Zadáváni údajů'!G11)*ERF(Pracovní!M13)+('Zadáváni údajů'!G23/1000)/'Zadáváni údajů'!G15-('Zadáváni údajů'!G25/1000)/'Zadáváni údajů'!G15)","v":0}]
[null,"x5",{"$f":"C11+C7","v":0},{"$f":"IF(OR('Zadáváni údajů'!G17=\"\",'Zadáváni údajů'!G17=0),0,'Zadáváni údajů'!G11+('Zadáváni údajů'!G9-'Zadáváni údajů'!G11)*ERF(Pracovní!D14)+('Zadáváni údajů'!G23/1000)/'Zadáváni údajů'!G15-('Zadáváni údajů'!G25/1000)/'Zadáváni údajů'!G15)","v":0},{"$f":"IF(OR('Zadáváni údajů'!G17=\"\",'Zadáváni údajů'!G17=0),0,'Zadáváni údajů'!G11+('Zadáváni údajů'!G9-'Zadáváni údajů'!G11)*ERF(Pracovní!E14)+('Zadáváni údajů'!G23/1000)/'Zadáváni údajů'!G15-('Zadáváni údajů'!G25/1000)/'Zadáváni údajů'!G15)","v":0},{"$f":"IF(OR('Zadáváni údajů'!G17=\"\",'Zadáváni údajů'!G17=0),0,'Zadáváni údajů'!G11+('Zadáváni údajů'!G9-'Zadáváni údajů'!G11)*ERF(Pracovní!F14)+('Zadáváni údajů'!G23/1000)/'Zadáváni údajů'!G15-('Zadáváni údajů'!G25/1000)/'Zadáváni údajů'!G15)","v":0},{"$f":"IF(OR('Zadáváni údajů'!G17=\"\",'Zadáváni údajů'!G17=0),0,'Zadáváni údajů'!G11+('Zadáváni údajů'!G9-'Zadáváni údajů'!G11)*ERF(Pracovní!G14)+('Zadáváni údajů'!G23/1000)/'Zadáváni údajů'!G15-('Zadáváni údajů'!G25/1000)/'Zadáváni údajů'!G15)","v":0},{"$f":"IF(OR('Zadáváni údajů'!G17=\"\",'Zadáváni údajů'!G17=0),0,'Zadáváni údajů'!G11+('Zadáváni údajů'!G9-'Zadáváni údajů'!G11)*ERF(Pracovní!H14)+('Zadáváni údajů'!G23/1000)/'Zadáváni údajů'!G15-('Zadáváni údajů'!G25/1000)/'Zadáváni údajů'!G15)","v":0},{"$f":"IF(OR('Zadáváni údajů'!G17=\"\",'Zadáváni údajů'!G17=0),0,'Zadáváni údajů'!G11+('Zadáváni údajů'!G9-'Zadáváni údajů'!G11)*ERF(Pracovní!I14)+('Zadáváni údajů'!G23/1000)/'Zadáváni údajů'!G15-('Zadáváni údajů'!G25/1000)/'Zadáváni údajů'!G15)","v":0},{"$f":"IF(OR('Zadáváni údajů'!G17=\"\",'Zadáváni údajů'!G17=0),0,'Zadáváni údajů'!G11+('Zadáváni údajů'!G9-'Zadáváni údajů'!G11)*ERF(Pracovní!J14)+('Zadáváni údajů'!G23/1000)/'Zadáváni údajů'!G15-('Zadáváni údajů'!G25/1000)/'Zadáváni údajů'!G15)","v":0},{"$f":"IF(OR('Zadáváni údajů'!G17=\"\",'Zadáváni údajů'!G17=0),0,'Zadáváni údajů'!G11+('Zadáváni údajů'!G9-'Zadáváni údajů'!G11)*ERF(Pracovní!K14)+('Zadáváni údajů'!G23/1000)/'Zadáváni údajů'!G15-('Zadáváni údajů'!G25/1000)/'Zadáváni údajů'!G15)","v":0},{"$f":"IF(OR('Zadáváni údajů'!G17=\"\",'Zadáváni údajů'!G17=0),0,'Zadáváni údajů'!G11+('Zadáváni údajů'!G9-'Zadáváni údajů'!G11)*ERF(Pracovní!L14)+('Zadáváni údajů'!G23/1000)/'Zadáváni údajů'!G15-('Zadáváni údajů'!G25/1000)/'Zadáváni údajů'!G15)","v":0},{"$f":"IF(OR('Zadáváni údajů'!G17=\"\",'Zadáváni údajů'!G17=0),0,'Zadáváni údajů'!G11+('Zadáváni údajů'!G9-'Zadáváni údajů'!G11)*ERF(Pracovní!M14)+('Zadáváni údajů'!G23/1000)/'Zadáváni údajů'!G15-('Zadáváni údajů'!G25/1000)/'Zadáváni údajů'!G15)","v":0}]
[null,"x6",{"$f":"C12+C7","v":0},{"$f":"IF(OR('Zadáváni údajů'!G17=\"\",'Zadáváni údajů'!G17=0),0,'Zadáváni údajů'!G11+('Zadáváni údajů'!G9-'Zadáváni údajů'!G11)*ERF(Pracovní!D15)+('Zadáváni údajů'!G23/1000)/'Zadáváni údajů'!G15-('Zadáváni údajů'!G25/1000)/'Zadáváni údajů'!G15)","v":0},{"$f":"IF(OR('Zadáváni údajů'!G17=\"\",'Zadáváni údajů'!G17=0),0,'Zadáváni údajů'!G11+('Zadáváni údajů'!G9-'Zadáváni údajů'!G11)*ERF(Pracovní!E15)+('Zadáváni údajů'!G23/1000)/'Zadáváni údajů'!G15-('Zadáváni údajů'!G25/1000)/'Zadáváni údajů'!G15)","v":0},{"$f":"IF(OR('Zadáváni údajů'!G17=\"\",'Zadáváni údajů'!G17=0),0,'Zadáváni údajů'!G11+('Zadáváni údajů'!G9-'Zadáváni údajů'!G11)*ERF(Pracovní!F15)+('Zadáváni údajů'!G23/1000)/'Zadáváni údajů'!G15-('Zadáváni údajů'!G25/1000)/'Zadáváni údajů'!G15)","v":0},{"$f":"IF(OR('Zadáváni údajů'!G17=\"\",'Zadáváni údajů'!G17=0),0,'Zadáváni údajů'!G11+('Zadáváni údajů'!G9-'Zadáváni údajů'!G11)*ERF(Pracovní!G15)+('Zadáváni údajů'!G23/1000)/'Zadáváni údajů'!G15-('Zadáváni údajů'!G25/1000)/'Zadáváni údajů'!G15)","v":0},{"$f":"IF(OR('Zadáváni údajů'!G17=\"\",'Zadáváni údajů'!G17=0),0,'Zadáváni údajů'!G11+('Zadáváni údajů'!G9-'Zadáváni údajů'!G11)*ERF(Pracovní!H15)+('Zadáváni údajů'!G23/1000)/'Zadáváni údajů'!G15-('Zadáváni údajů'!G25/1000)/'Zadáváni údajů'!G15)","v":0},{"$f":"IF(OR('Zadáváni údajů'!G17=\"\",'Zadáváni údajů'!G17=0),0,'Zadáváni údajů'!G11+('Zadáváni údajů'!G9-'Zadáváni údajů'!G11)*ERF(Pracovní!I15)+('Zadáváni údajů'!G23/1000)/'Zadáváni údajů'!G15-('Zadáváni údajů'!G25/1000)/'Zadáváni údajů'!G15)","v":0},{"$f":"IF(OR('Zadáváni údajů'!G17=\"\",'Zadáváni údajů'!G17=0),0,'Zadáváni údajů'!G11+('Zadáváni údajů'!G9-'Zadáváni údajů'!G11)*ERF(Pracovní!J15)+('Zadáváni údajů'!G23/1000)/'Zadáváni údajů'!G15-('Zadáváni údajů'!G25/1000)/'Zadáváni údajů'!G15)","v":0},{"$f":"IF(OR('Zadáváni údajů'!G17=\"\",'Zadáváni údajů'!G17=0),0,'Zadáváni údajů'!G11+('Zadáváni údajů'!G9-'Zadáváni údajů'!G11)*ERF(Pracovní!K15)+('Zadáváni údajů'!G23/1000)/'Zadáváni údajů'!G15-('Zadáváni údajů'!G25/1000)/'Zadáváni údajů'!G15)","v":0},{"$f":"IF(OR('Zadáváni údajů'!G17=\"\",'Zadáváni údajů'!G17=0),0,'Zadáváni údajů'!G11+('Zadáváni údajů'!G9-'Zadáváni údajů'!G11)*ERF(Pracovní!L15)+('Zadáváni údajů'!G23/1000)/'Zadáváni údajů'!G15-('Zadáváni údajů'!G25/1000)/'Zadáváni údajů'!G15)","v":0},{"$f":"IF(OR('Zadáváni údajů'!G17=\"\",'Zadáváni údajů'!G17=0),0,'Zadáváni údajů'!G11+('Zadáváni údajů'!G9-'Zadáváni údajů'!G11)*ERF(Pracovní!M15)+('Zadáváni údajů'!G23/1000)/'Zadáváni údajů'!G15-('Zadáváni údajů'!G25/1000)/'Zadáváni údajů'!G15)","v":0}]
[null,"x7",{"$f":"C13+C7","v":0},{"$f":"IF(OR('Zadáváni údajů'!G17=\"\",'Zadáváni údajů'!G17=0),0,'Zadáváni údajů'!G11+('Zadáváni údajů'!G9-'Zadáváni údajů'!G11)*ERF(Pracovní!D16)+('Zadáváni údajů'!G23/1000)/'Zadáváni údajů'!G15-('Zadáváni údajů'!G25/1000)/'Zadáváni údajů'!G15)","v":0},{"$f":"IF(OR('Zadáváni údajů'!G17=\"\",'Zadáváni údajů'!G17=0),0,'Zadáváni údajů'!G11+('Zadáváni údajů'!G9-'Zadáváni údajů'!G11)*ERF(Pracovní!E16)+('Zadáváni údajů'!G23/1000)/'Zadáváni údajů'!G15-('Zadáváni údajů'!G25/1000)/'Zadáváni údajů'!G15)","v":0},{"$f":"IF(OR('Zadáváni údajů'!G17=\"\",'Zadáváni údajů'!G17=0),0,'Zadáváni údajů'!G11+('Zadáváni údajů'!G9-'Zadáváni údajů'!G11)*ERF(Pracovní!F16)+('Zadáváni údajů'!G23/1000)/'Zadáváni údajů'!G15-('Zadáváni údajů'!G25/1000)/'Zadáváni údajů'!G15)","v":0},{"$f":"IF(OR('Zadáváni údajů'!G17=\"\",'Zadáváni údajů'!G17=0),0,'Zadáváni údajů'!G11+('Zadáváni údajů'!G9-'Zadáváni údajů'!G11)*ERF(Pracovní!G16)+('Zadáváni údajů'!G23/1000)/'Zadáváni údajů'!G15-('Zadáváni údajů'!G25/1000)/'Zadáváni údajů'!G15)","v":0},{"$f":"IF(OR('Zadáváni údajů'!G17=\"\",'Zadáváni údajů'!G17=0),0,'Zadáváni údajů'!G11+('Zadáváni údajů'!G9-'Zadáváni údajů'!G11)*ERF(Pracovní!H16)+('Zadáváni údajů'!G23/1000)/'Zadáváni údajů'!G15-('Zadáváni údajů'!G25/1000)/'Zadáváni údajů'!G15)","v":0},{"$f":"IF(OR('Zadáváni údajů'!G17=\"\",'Zadáváni údajů'!G17=0),0,'Zadáváni údajů'!G11+('Zadáváni údajů'!G9-'Zadáváni údajů'!G11)*ERF(Pracovní!I16)+('Zadáváni údajů'!G23/1000)/'Zadáváni údajů'!G15-('Zadáváni údajů'!G25/1000)/'Zadáváni údajů'!G15)","v":0},{"$f":"IF(OR('Zadáváni údajů'!G17=\"\",'Zadáváni údajů'!G17=0),0,'Zadáváni údajů'!G11+('Zadáváni údajů'!G9-'Zadáváni údajů'!G11)*ERF(Pracovní!J16)+('Zadáváni údajů'!G23/1000)/'Zadáváni údajů'!G15-('Zadáváni údajů'!G25/1000)/'Zadáváni údajů'!G15)","v":0},{"$f":"IF(OR('Zadáváni údajů'!G17=\"\",'Zadáváni údajů'!G17=0),0,'Zadáváni údajů'!G11+('Zadáváni údajů'!G9-'Zadáváni údajů'!G11)*ERF(Pracovní!K16)+('Zadáváni údajů'!G23/1000)/'Zadáváni údajů'!G15-('Zadáváni údajů'!G25/1000)/'Zadáváni údajů'!G15)","v":0},{"$f":"IF(OR('Zadáváni údajů'!G17=\"\",'Zadáváni údajů'!G17=0),0,'Zadáváni údajů'!G11+('Zadáváni údajů'!G9-'Zadáváni údajů'!G11)*ERF(Pracovní!L16)+('Zadáváni údajů'!G23/1000)/'Zadáváni údajů'!G15-('Zadáváni údajů'!G25/1000)/'Zadáváni údajů'!G15)","v":0},{"$f":"IF(OR('Zadáváni údajů'!G17=\"\",'Zadáváni údajů'!G17=0),0,'Zadáváni údajů'!G11+('Zadáváni údajů'!G9-'Zadáváni údajů'!G11)*ERF(Pracovní!M16)+('Zadáváni údajů'!G23/1000)/'Zadáváni údajů'!G15-('Zadáváni údajů'!G25/1000)/'Zadáváni údajů'!G15)","v":0}]
[null,"x8",{"$f":"C14+C7","v":0},{"$f":"IF(OR('Zadáváni údajů'!G17=\"\",'Zadáváni údajů'!G17=0),0,'Zadáváni údajů'!G11+('Zadáváni údajů'!G9-'Zadáváni údajů'!G11)*ERF(Pracovní!D17)+('Zadáváni údajů'!G23/1000)/'Zadáváni údajů'!G15-('Zadáváni údajů'!G25/1000)/'Zadáváni údajů'!G15)","v":0},{"$f":"IF(OR('Zadáváni údajů'!G17=\"\",'Zadáváni údajů'!G17=0),0,'Zadáváni údajů'!G11+('Zadáváni údajů'!G9-'Zadáváni údajů'!G11)*ERF(Pracovní!E17)+('Zadáváni údajů'!G23/1000)/'Zadáváni údajů'!G15-('Zadáváni údajů'!G25/1000)/'Zadáváni údajů'!G15)","v":0},{"$f":"IF(OR('Zadáváni údajů'!G17=\"\",'Zadáváni údajů'!G17=0),0,'Zadáváni údajů'!G11+('Zadáváni údajů'!G9-'Zadáváni údajů'!G11)*ERF(Pracovní!F17)+('Zadáváni údajů'!G23/1000)/'Zadáváni údajů'!G15-('Zadáváni údajů'!G25/1000)/'Zadáváni údajů'!G15)","v":0},{"$f":"IF(OR('Zadáváni údajů'!G17=\"\",'Zadáváni údajů'!G17=0),0,'Zadáváni údajů'!G11+('Zadáváni údajů'!G9-'Zadáváni údajů'!G11)*ERF(Pracovní!G17)+('Zadáváni údajů'!G23/1000)/'Zadáváni údajů'!G15-('Zadáváni údajů'!G25/1000)/'Zadáváni údajů'!G15)","v":0},{"$f":"IF(OR('Zadáváni údajů'!G17=\"\",'Zadáváni údajů'!G17=0),0,'Zadáváni údajů'!G11+('Zadáváni údajů'!G9-'Zadáváni údajů'!G11)*ERF(Pracovní!H17)+('Zadáváni údajů'!G23/1000)/'Zadáváni údajů'!G15-('Zadáváni údajů'!G25/1000)/'Zadáváni údajů'!G15)","v":0},{"$f":"IF(OR('Zadáváni údajů'!G17=\"\",'Zadáváni údajů'!G17=0),0,'Zadáváni údajů'!G11+('Zadáváni údajů'!G9-'Zadáváni údajů'!G11)*ERF(Pracovní!I17)+('Zadáváni údajů'!G23/1000)/'Zadáváni údajů'!G15-('Zadáváni údajů'!G25/1000)/'Zadáváni údajů'!G15)","v":0},{"$f":"IF(OR('Zadáváni údajů'!G17=\"\",'Zadáváni údajů'!G17=0),0,'Zadáváni údajů'!G11+('Zadáváni údajů'!G9-'Zadáváni údajů'!G11)*ERF(Pracovní!J17)+('Zadáváni údajů'!G23/1000)/'Zadáváni údajů'!G15-('Zadáváni údajů'!G25/1000)/'Zadáváni údajů'!G15)","v":0},{"$f":"IF(OR('Zadáváni údajů'!G17=\"\",'Zadáváni údajů'!G17=0),0,'Zadáváni údajů'!G11+('Zadáváni údajů'!G9-'Zadáváni údajů'!G11)*ERF(Pracovní!K17)+('Zadáváni údajů'!G23/1000)/'Zadáváni údajů'!G15-('Zadáváni údajů'!G25/1000)/'Zadáváni údajů'!G15)","v":0},{"$f":"IF(OR('Zadáváni údajů'!G17=\"\",'Zadáváni údajů'!G17=0),0,'Zadáváni údajů'!G11+('Zadáváni údajů'!G9-'Zadáváni údajů'!G11)*ERF(Pracovní!L17)+('Zadáváni údajů'!G23/1000)/'Zadáváni údajů'!G15-('Zadáváni údajů'!G25/1000)/'Zadáváni údajů'!G15)","v":0},{"$f":"IF(OR('Zadáváni údajů'!G17=\"\",'Zadáváni údajů'!G17=0),0,'Zadáváni údajů'!G11+('Zadáváni údajů'!G9-'Zadáváni údajů'!G11)*ERF(Pracovní!M17)+('Zadáváni údajů'!G23/1000)/'Zadáváni údajů'!G15-('Zadáváni údajů'!G25/1000)/'Zadáváni údajů'!G15)","v":0}]
[null,"x9",{"$f":"C15+C7","v":0},{"$f":"IF(OR('Zadáváni údajů'!G17=\"\",'Zadáváni údajů'!G17=0),0,'Zadáváni údajů'!G11+('Zadáváni údajů'!G9-'Zadáváni údajů'!G11)*ERF(Pracovní!D18)+('Zadáváni údajů'!G23/1000)/'Zadáváni údajů'!G15-('Zadáváni údajů'!G25/1000)/'Zadáváni údajů'!G15)","v":0},{"$f":"IF(OR('Zadáváni údajů'!G17=\"\",'Zadáváni údajů'!G17=0),0,'Zadáváni údajů'!G11+('Zadáváni údajů'!G9-'Zadáváni údajů'!G11)*ERF(Pracovní!E18)+('Zadáváni údajů'!G23/1000)/'Zadáváni údajů'!G15-('Zadáváni údajů'!G25/1000)/'Zadáváni údajů'!G15)","v":0},{"$f":"IF(OR('Zadáváni údajů'!G17=\"\",'Zadáváni údajů'!G17=0),0,'Zadáváni údajů'!G11+('Zadáváni údajů'!G9-'Zadáváni údajů'!G11)*ERF(Pracovní!F18)+('Zadáváni údajů'!G23/1000)/'Zadáváni údajů'!G15-('Zadáváni údajů'!G25/1000)/'Zadáváni údajů'!G15)","v":0},{"$f":"IF(OR('Zadáváni údajů'!G17=\"\",'Zadáváni údajů'!G17=0),0,'Zadáváni údajů'!G11+('Zadáváni údajů'!G9-'Zadáváni údajů'!G11)*ERF(Pracovní!G18)+('Zadáváni údajů'!G23/1000)/'Zadáváni údajů'!G15-('Zadáváni údajů'!G25/1000)/'Zadáváni údajů'!G15)","v":0},{"$f":"IF(OR('Zadáváni údajů'!G17=\"\",'Zadáváni údajů'!G17=0),0,'Zadáváni údajů'!G11+('Zadáváni údajů'!G9-'Zadáváni údajů'!G11)*ERF(Pracovní!H18)+('Zadáváni údajů'!G23/1000)/'Zadáváni údajů'!G15-('Zadáváni údajů'!G25/1000)/'Zadáváni údajů'!G15)","v":0},{"$f":"IF(OR('Zadáváni údajů'!G17=\"\",'Zadáváni údajů'!G17=0),0,'Zadáváni údajů'!G11+('Zadáváni údajů'!G9-'Zadáváni údajů'!G11)*ERF(Pracovní!I18)+('Zadáváni údajů'!G23/1000)/'Zadáváni údajů'!G15-('Zadáváni údajů'!G25/1000)/'Zadáváni údajů'!G15)","v":0},{"$f":"IF(OR('Zadáváni údajů'!G17=\"\",'Zadáváni údajů'!G17=0),0,'Zadáváni údajů'!G11+('Zadáváni údajů'!G9-'Zadáváni údajů'!G11)*ERF(Pracovní!J18)+('Zadáváni údajů'!G23/1000)/'Zadáváni údajů'!G15-('Zadáváni údajů'!G25/1000)/'Zadáváni údajů'!G15)","v":0},{"$f":"IF(OR('Zadáváni údajů'!G17=\"\",'Zadáváni údajů'!G17=0),0,'Zadáváni údajů'!G11+('Zadáváni údajů'!G9-'Zadáváni údajů'!G11)*ERF(Pracovní!K18)+('Zadáváni údajů'!G23/1000)/'Zadáváni údajů'!G15-('Zadáváni údajů'!G25/1000)/'Zadáváni údajů'!G15)","v":0},{"$f":"IF(OR('Zadáváni údajů'!G17=\"\",'Zadáváni údajů'!G17=0),0,'Zadáváni údajů'!G11+('Zadáváni údajů'!G9-'Zadáváni údajů'!G11)*ERF(Pracovní!L18)+('Zadáváni údajů'!G23/1000)/'Zadáváni údajů'!G15-('Zadáváni údajů'!G25/1000)/'Zadáváni údajů'!G15)","v":0},{"$f":"IF(OR('Zadáváni údajů'!G17=\"\",'Zadáváni údajů'!G17=0),0,'Zadáváni údajů'!G11+('Zadáváni údajů'!G9-'Zadáváni údajů'!G11)*ERF(Pracovní!M18)+('Zadáváni údajů'!G23/1000)/'Zadáváni údajů'!G15-('Zadáváni údajů'!G25/1000)/'Zadáváni údajů'!G15)","v":0}]

{"sheet":"Evapotranspirace - poznámky","index":4,"n_rows":25,"n_cols":8,"rows_kept":25,"merged":[[1,1,1,10],[4,1,4,8],[6,1,6,6],[6,7,6,8],[8,1,8,6],[10,1,10,2],[12,2,12,10],[13,2,13,10],[15,2,15,10],[16,2,16,10],[18,2,18,10],[19,2,19,10],[21,2,21,10],[23,2,23,10],[24,2,24,10]]}
[]
[null,"Hodnota evapotranspirace se počítá samostatným postupem a představuje sumu za dané období."]
[]
[]
[null,"Výsek informačních zdrojů pojednávající o problematice EVAPOTRANSPIRACE:"]
[]
[null,"odkaz na Českou bioklimatickou společnost:",{"$nulls":5},"http://www.cbks.cz/"]
[]
[null,"Veřejně přístupná sekce sborníky. Plný obsah příspěvků."]
[]
[null,"Příklady příspěvků:"]
[]
[null,null,"Rožnovský, J., Litschmann, T. (ed): Seminář „Mikroklima porostů“, Brno, 26. března 2003,"]
[null,null,"ISBN 80-86690_05-9, str. 172-186"]
[]
[null,null,"Rožnovský, J., Litschmann, T. (ed): Seminář „Evaporace a evapotranspirace“, Brno, 23. března 2005,"]
[null,null,"ISBN 80-86690-24-5, s. 25 - 38"]
[]
[null,null,"Rožnovský, J., Litschmann, T. (ed): Seminář „Evaporace a evapotranspirace“, Brno, 23. března 2005,"]
[null,null,"ISBN 80-86690-24-5, s. 47 - 58"]
[]
[null,null,"Rožnovský, J., Litschmann, T. (ed): „Voda v krajině“, Lednice 31.5. – 1.6.2010, ISBN 978-80-86690-79-7"]
[]
[null,null,"Středová, H., Rožnovský, J., Litschmann, T. (eds): Mikroklima a mezoklima krajinných struktur"]
[null,null,"a antropogenních prostředí. Skalní mlýn, 2. – 4.2. 2011, ISBN 978-80-86690-87-2"]

{"sheet":"Pracovní","index":5,"n_rows":18,"n_cols":13,"rows_kept":18,"merged":[[2,1,2,4],[4,1,4,6],[6,1,7,2],[6,3,6,12],[8,1,17,1]]}
[]
[]
[null,"Pomocné výpočty"]
[]
[null,"argumenty chybové fce ERF dle vzdálenosti a času"]
[]
[{"$nulls":3},"čas"]
[{"$nulls":3},"t₀","t₁","t₂","t₃","t₄","t₅","t₆","t₇","t₈","t₉"]
[null,"vzdálenost  ","x₀",{"$f":"IF(OR('Zadáváni údajů'!G17=\"\",'Zadáváni údajů'!G17=0,Výsledek!G7=0), 0,'Krokový výpočet'!C7/(2*SQRT(Výsledek!G6*'Krokový výpočet'!D6)))","v":0},{"$f":"IF(OR('Zadáváni údajů'!G17=\"\",'Zadáváni údajů'!G17=0,Výsledek!G7=0), 0,'Krokový výpočet'!C7/(2*SQRT(Výsledek!G6*'Krokový výpočet'!E6)))","v":0},{"$f":"IF(OR('Zadáváni údajů'!G17=\"\",'Zadáváni údajů'!G17=0,Výsledek!G7=0), 0,'Krokový výpočet'!C7/(2*SQRT(Výsledek!G6*'Krokový výpočet'!F6)))","v":0},{"$f":"IF(OR('Zadáváni údajů'!G17=\"\",'Zadáváni údajů'!G17=0,Výsledek!G7=0), 0,'Krokový výpočet'!C7/(2*SQRT(Výsledek!G6*'Krokový výpočet'!G6)))","v":0},{"$f":"IF(OR('Zadáváni údajů'!G17=\"\",'Zadáváni údajů'!G17=0,Výsledek!G7=0), 0,'Krokový výpočet'!C7/(2*SQRT(Výsledek!G6*'Krokový výpočet'!H6)))","v":0},{"$f":"IF(OR('Zadáváni údajů'!G17=\"\",'Zadáváni údajů'!G17=0,Výsledek!G7=0), 0,'Krokový výpočet'!C7/(2*SQRT(Výsledek!G6*'Krokový výpočet'!I6)))","v":0},{"$f":"IF(OR('Zadáváni údajů'!G17=\"\",'Zadáváni údajů'!G17=0,Výsledek!G7=0), 0,'Krokový výpočet'!C7/(2*SQRT(Výsledek!G6*'Krokový výpočet'!J6)))","v":0},{"$f":"IF(OR('Zadáváni údajů'!G17=\"\",'Zadáváni údajů'!G17=0,Výsledek!G7=0), 0,'Krokový výpočet'!C7/(2*SQRT(Výsledek!G6*'Krokový výpočet'!K6)))","v":0},{"$f":"IF(OR('Zadáváni údajů'!G17=\"\",'Zadáváni údajů'!G17=0,Výsledek!G7=0), 0,'Krokový výpočet'!C7/(2*SQRT(Výsledek!G6*'Krokový výpočet'!L6)))","v":0},{"$f":"IF(OR('Zadáváni údajů'!G17=\"\",'Zadáváni údajů'!G17=0,Výsledek!G7=0), 0,'Krokový výpočet'!C7/(2*SQRT(Výsledek!G6*'Krokový výpočet'!M6)))","v":0}]
[null,null,"x₁",{"$f":"IF(OR('Zadáváni údajů'!G17=\"\",'Zadáváni údajů'!G17=0,Výsledek!G7=0), 0,'Krokový výpočet'!C8/(2*SQRT(Výsledek!G6*'Krokový výpočet'!D6)))","v":0},{"$f":"IF(OR('Zadáváni údajů'!G17=\"\",'Zadáváni údajů'!G17=0,Výsledek!G7=0), 0,'Krokový výpočet'!C8/(2*SQRT(Výsledek!G6*'Krokový výpočet'!E6)))","v":0},{"$f":"IF(OR('Zadáváni údajů'!G17=\"\",'Zadáváni údajů'!G17=0,Výsledek!G7=0), 0,'Krokový výpočet'!C8/(2*SQRT(Výsledek!G6*'Krokový výpočet'!F6)))","v":0},{"$f":"IF(OR('Zadáváni údajů'!G17=\"\",'Zadáváni údajů'!G17=0,Výsledek!G7=0), 0,'Krokový výpočet'!C8/(2*SQRT(Výsledek!G6*'Krokový výpočet'!G6)))","v":0},{"$f":"IF(OR('Zadáváni údajů'!G17=\"\",'Zadáváni údajů'!G17=0,Výsledek!G7=0), 0,'Krokový výpočet'!C8/(2*SQRT(Výsledek!G6*'Krokový výpočet'!H6)))","v":0},{"$f":"IF(OR('Zadáváni údajů'!G17=\"\",'Zadáváni údajů'!G17=0,Výsledek!G7=0), 0,'Krokový výpočet'!C8/(2*SQRT(Výsledek!G6*'Krokový výpočet'!I6)))","v":0},{"$f":"IF(OR('Zadáváni údajů'!G17=\"\",'Zadáváni údajů'!G17=0,Výsledek!G7=0), 0,'Krokový výpočet'!C8/(2*SQRT(Výsledek!G6*'Krokový výpočet'!J6)))","v":0},{"$f":"IF(OR('Zadáváni údajů'!G17=\"\",'Zadáváni údajů'!G17=0,Výsledek!G7=0), 0,'Krokový výpočet'!C8/(2*SQRT(Výsledek!G6*'Krokový výpočet'!K6)))","v":0},{"$f":"IF(OR('Zadáváni údajů'!G17=\"\",'Zadáváni údajů'!G17=0,Výsledek!G7=0), 0,'Krokový výpočet'!C8/(2*SQRT(Výsledek!G6*'Krokový výpočet'!L6)))","v":0},{"$f":"IF(OR('Zadáváni údajů'!G17=\"\",'Zadáváni údajů'!G17=0,Výsledek!G7=0), 0,'Krokový výpočet'!C8/(2*SQRT(Výsledek!G6*'Krokový výpočet'!M6)))","v":0}]
[null,null,"x₂",{"$f":"IF(OR('Zadáváni údajů'!G17=\"\",'Zadáváni údajů'!G17=0,Výsledek!G7=0), 0,'Krokový výpočet'!C9/(2*SQRT(Výsledek!G6*'Krokový výpočet'!D6)))","v":0},{"$f":"IF(OR('Zadáváni údajů'!G17=\"\",'Zadáváni údajů'!G17=0,Výsledek!G7=0), 0,'Krokový výpočet'!C9/(2*SQRT(Výsledek!G6*'Krokový výpočet'!E6)))","v":0},{"$f":"IF(OR('Zadáváni údajů'!G17=\"\",'Zadáváni údajů'!G17=0,Výsledek!G7=0), 0,'Krokový výpočet'!C9/(2*SQRT(Výsledek!G6*'Krokový výpočet'!F6)))","v":0},{"$f":"IF(OR('Zadáváni údajů'!G17=\"\",'Zadáváni údajů'!G17=0,Výsledek!G7=0), 0,'Krokový výpočet'!C9/(2*SQRT(Výsledek!G6*'Krokový výpočet'!G6)))","v":0},{"$f":"IF(OR('Zadáváni údajů'!G17=\"\",'Zadáváni údajů'!G17=0,Výsledek!G7=0), 0,'Krokový výpočet'!C9/(2*SQRT(Výsledek!G6*'Krokový výpočet'!H6)))","v":0},{"$f":"IF(OR('Zadáváni údajů'!G17=\"\",'Zadáváni údajů'!G17=0,Výsledek!G7=0), 0,'Krokový výpočet'!C9/(2*SQRT(Výsledek!G6*'Krokový výpočet'!I6)))","v":0},{"$f":"IF(OR('Zadáváni údajů'!G17=\"\",'Zadáváni údajů'!G17=0,Výsledek!G7=0), 0,'Krokový výpočet'!C9/(2*SQRT(Výsledek!G6*'Krokový výpočet'!J6)))","v":0},{"$f":"IF(OR('Zadáváni údajů'!G17=\"\",'Zadáváni údajů'!G17=0,Výsledek!G7=0), 0,'Krokový výpočet'!C9/(2*SQRT(Výsledek!G6*'Krokový výpočet'!K6)))","v":0},{"$f":"IF(OR('Zadáváni údajů'!G17=\"\",'Zadáváni údajů'!G17=0,Výsledek!G7=0), 0,'Krokový výpočet'!C9/(2*SQRT(Výsledek!G6*'Krokový výpočet'!L6)))","v":0},{"$f":"IF(OR('Zadáváni údajů'!G17=\"\",'Zadáváni údajů'!G17=0,Výsledek!G7=0), 0,'Krokový výpočet'!C9/(2*SQRT(Výsledek!G6*'Krokový výpočet'!M6)))","v":0}]
[null,null,"x₃",{"$f":"IF(OR('Zadáváni údajů'!G17=\"\",'Zadáváni údajů'!G17=0,Výsledek!G7=0), 0,'Krokový výpočet'!C10/(2*SQRT(Výsledek!G6*'Krokový výpočet'!D6)))","v":0},{"$f":"IF(OR('Zadáváni údajů'!G17=\"\",'Zadáváni údajů'!G17=0,Výsledek!G7=0), 0,'Krokový výpočet'!C10/(2*SQRT(Výsledek!G6*'Krokový výpočet'!E6)))","v":0},{"$f":"IF(OR('Zadáváni údajů'!G17=\"\",'Zadáváni údajů'!G17=0,Výsledek!G7=0), 0,'Krokový výpočet'!C10/(2*SQRT(Výsledek!G6*'Krokový výpočet'!F6)))","v":0},{"$f":"IF(OR('Zadáváni údajů'!G17=\"\",'Zadáváni údajů'!G17=0,Výsledek!G7=0), 0,'Krokový výpočet'!C10/(2*SQRT(Výsledek!G6*'Krokový výpočet'!G6)))","v":0},{"$f":"IF(OR('Zadáváni údajů'!G17=\"\",'Zadáváni údajů'!G17=0,Výsledek!G7=0), 0,'Krokový výpočet'!C10/(2*SQRT(Výsledek!G6*'Krokový výpočet'!H6)))","v":0},{"$f":"IF(OR('Zadáváni údajů'!G17=\"\",'Zadáváni údajů'!G17=0,Výsledek!G7=0), 0,'Krokový výpočet'!C10/(2*SQRT(Výsledek!G6*'Krokový výpočet'!I6)))","v":0},{"$f":"IF(OR('Zadáváni údajů'!G17=\"\",'Zadáváni údajů'!G17=0,Výsledek!G7=0), 0,'Krokový výpočet'!C10/(2*SQRT(Výsledek!G6*'Krokový výpočet'!J6)))","v":0},{"$f":"IF(OR('Zadáváni údajů'!G17=\"\",'Zadáváni údajů'!G17=0,Výsledek!G7=0), 0,'Krokový výpočet'!C10/(2*SQRT(Výsledek!G6*'Krokový výpočet'!K6)))","v":0},{"$f":"IF(OR('Zadáváni údajů'!G17=\"\",'Zadáváni údajů'!G17=0,Výsledek!G7=0), 0,'Krokový výpočet'!C10/(2*SQRT(Výsledek!G6*'Krokový výpočet'!L6)))","v":0},{"$f":"IF(OR('Zadáváni údajů'!G17=\"\",'Zadáváni údajů'!G17=0,Výsledek!G7=0), 0,'Krokový výpočet'!C10/(2*SQRT(Výsledek!G6*'Krokový výpočet'!M6)))","v":0}]
[null,null,"x₄",{"$f":"IF(OR('Zadáváni údajů'!G17=\"\",'Zadáváni údajů'!G17=0,Výsledek!G7=0), 0,'Krokový výpočet'!C11/(2*SQRT(Výsledek!G6*'Krokový výpočet'!D6)))","v":0},{"$f":"IF(OR('Zadáváni údajů'!G17=\"\",'Zadáváni údajů'!G17=0,Výsledek!G7=0), 0,'Krokový výpočet'!C11/(2*SQRT(Výsledek!G6*'Krokový výpočet'!E6)))","v":0},{"$f":"IF(OR('Zadáváni údajů'!G17=\"\",'Zadáváni údajů'!G17=0,Výsledek!G7=0), 0,'Krokový výpočet'!C11/(2*SQRT(Výsledek!G6*'Krokový výpočet'!F6)))","v":0},{"$f":"IF(OR('Zadáváni údajů'!G17=\"\",'Zadáváni údajů'!G17=0,Výsledek!G7=0), 0,'Krokový výpočet'!C11/(2*SQRT(Výsledek!G6*'Krokový výpočet'!G6)))","v":0},{"$f":"IF(OR('Zadáváni údajů'!G17=\"\",'Zadáváni údajů'!G17=0,Výsledek!G7=0), 0,'Krokový výpočet'!C11/(2*SQRT(Výsledek!G6*'Krokový výpočet'!H6)))","v":0},{"$f":"IF(OR('Zadáváni údajů'!G17=\"\",'Zadáváni údajů'!G17=0,Výsledek!G7=0), 0,'Krokový výpočet'!C11/(2*SQRT(Výsledek!G6*'Krokový výpočet'!I6)))","v":0},{"$f":"IF(OR('Zadáváni údajů'!G17=\"\",'Zadáváni údajů'!G17=0,Výsledek!G7=0), 0,'Krokový výpočet'!C11/(2*SQRT(Výsledek!G6*'Krokový výpočet'!J6)))","v":0},{"$f":"IF(OR('Zadáváni údajů'!G17=\"\",'Zadáváni údajů'!G17=0,Výsledek!G7=0), 0,'Krokový výpočet'!C11/(2*SQRT(Výsledek!G6*'Krokový výpočet'!K6)))","v":0},{"$f":"IF(OR('Zadáváni údajů'!G17=\"\",'Zadáváni údajů'!G17=0,Výsledek!G7=0), 0,'Krokový výpočet'!C11/(2*SQRT(Výsledek!G6*'Krokový výpočet'!L6)))","v":0},{"$f":"IF(OR('Zadáváni údajů'!G17=\"\",'Zadáváni údajů'!G17=0,Výsledek!G7=0), 0,'Krokový výpočet'!C11/(2*SQRT(Výsledek!G6*'Krokový výpočet'!M6)))","v":0}]
[null,null,"x₅",{"$f":"IF(OR('Zadáváni údajů'!G17=\"\",'Zadáváni údajů'!G17=0,Výsledek!G7=0), 0,'Krokový výpočet'!C12/(2*SQRT(Výsledek!G6*'Krokový výpočet'!D6)))","v":0},{"$f":"IF(OR('Zadáváni údajů'!G17=\"\",'Zadáváni údajů'!G17=0,Výsledek!G7=0), 0,'Krokový výpočet'!C12/(2*SQRT(Výsledek!G6*'Krokový výpočet'!E6)))","v":0},{"$f":"IF(OR('Zadáváni údajů'!G17=\"\",'Zadáváni údajů'!G17=0,Výsledek!G7=0), 0,'Krokový výpočet'!C12/(2*SQRT(Výsledek!G6*'Krokový výpočet'!F6)))","v":0},{"$f":"IF(OR('Zadáváni údajů'!G17=\"\",'Zadáváni údajů'!G17=0,Výsledek!G7=0), 0,'Krokový výpočet'!C12/(2*SQRT(Výsledek!G6*'Krokový výpočet'!G6)))","v":0},{"$f":"IF(OR('Zadáváni údajů'!G17=\"\",'Zadáváni údajů'!G17=0,Výsledek!G7=0), 0,'Krokový výpočet'!C12/(2*SQRT(Výsledek!G6*'Krokový výpočet'!H6)))","v":0},{"$f":"IF(OR('Zadáváni údajů'!G17=\"\",'Zadáváni údajů'!G17=0,Výsledek!G7=0), 0,'Krokový výpočet'!C12/(2*SQRT(Výsledek!G6*'Krokový výpočet'!I6)))","v":0},{"$f":"IF(OR('Zadáváni údajů'!G17=\"\",'Zadáváni údajů'!G17=0,Výsledek!G7=0), 0,'Krokový výpočet'!C12/(2*SQRT(Výsledek!G6*'Krokový výpočet'!J6)))","v":0},{"$f":"IF(OR('Zadáváni údajů'!G17=\"\",'Zadáváni údajů'!G17=0,Výsledek!G7=0), 0,'Krokový výpočet'!C12/(2*SQRT(Výsledek!G6*'Krokový výpočet'!K6)))","v":0},{"$f":"IF(OR('Zadáváni údajů'!G17=\"\",'Zadáváni údajů'!G17=0,Výsledek!G7=0), 0,'Krokový výpočet'!C12/(2*SQRT(Výsledek!G6*'Krokový výpočet'!L6)))","v":0},{"$f":"IF(OR('Zadáváni údajů'!G17=\"\",'Zadáváni údajů'!G17=0,Výsledek!G7=0), 0,'Krokový výpočet'!C12/(2*SQRT(Výsledek!G6*'Krokový výpočet'!M6)))","v":0}]
[null,null,"x₆",{"$f":"IF(OR('Zadáváni údajů'!G17=\"\",'Zadáváni údajů'!G17=0,Výsledek!G7=0), 0,'Krokový výpočet'!C13/(2*SQRT(Výsledek!G6*'Krokový výpočet'!D6)))","v":0},{"$f":"IF(OR('Zadáváni údajů'!G17=\"\",'Zadáváni údajů'!G17=0,Výsledek!G7=0), 0,'Krokový výpočet'!C13/(2*SQRT(Výsledek!G6*'Krokový výpočet'!E6)))","v":0},{"$f":"IF(OR('Zadáváni údajů'!G17=\"\",'Zadáváni údajů'!G17=0,Výsledek!G7=0), 0,'Krokový výpočet'!C13/(2*SQRT(Výsledek!G6*'Krokový výpočet'!F6)))","v":0},{"$f":"IF(OR('Zadáváni údajů'!G17=\"\",'Zadáváni údajů'!G17=0,Výsledek!G7=0), 0,'Krokový výpočet'!C13/(2*SQRT(Výsledek!G6*'Krokový výpočet'!G6)))","v":0},{"$f":"IF(OR('Zadáváni údajů'!G17=\"\",'Zadáváni údajů'!G17=0,Výsledek!G7=0), 0,'Krokový výpočet'!C13/(2*SQRT(Výsledek!G6*'Krokový výpočet'!H6)))","v":0},{"$f":"IF(OR('Zadáváni údajů'!G17=\"\",'Zadáváni údajů'!G17=0,Výsledek!G7=0), 0,'Krokový výpočet'!C13/(2*SQRT(Výsledek!G6*'Krokový výpočet'!I6)))","v":0},{"$f":"IF(OR('Zadáváni údajů'!G17=\"\",'Zadáváni údajů'!G17=0,Výsledek!G7=0), 0,'Krokový výpočet'!C13/(2*SQRT(Výsledek!G6*'Krokový výpočet'!J6)))","v":0},{"$f":"IF(OR('Zadáváni údajů'!G17=\"\",'Zadáváni údajů'!G17=0,Výsledek!G7=0), 0,'Krokový výpočet'!C13/(2*SQRT(Výsledek!G6*'Krokový výpočet'!K6)))","v":0},{"$f":"IF(OR('Zadáváni údajů'!G17=\"\",'Zadáváni údajů'!G17=0,Výsledek!G7=0), 0,'Krokový výpočet'!C13/(2*SQRT(Výsledek!G6*'Krokový výpočet'!L6)))","v":0},{"$f":"IF(OR('Zadáváni údajů'!G17=\"\",'Zadáváni údajů'!G17=0,Výsledek!G7=0), 0,'Krokový výpočet'!C13/(2*SQRT(Výsledek!G6*'Krokový výpočet'!M6)))","v":0}]
[null,null,"x₇",{"$f":"IF(OR('Zadáváni údajů'!G17=\"\",'Zadáváni údajů'!G17=0,Výsledek!G7=0), 0,'Krokový výpočet'!C14/(2*SQRT(Výsledek!G6*'Krokový výpočet'!D6)))","v":0},{"$f":"IF(OR('Zadáváni údajů'!G17=\"\",'Zadáváni údajů'!G17=0,Výsledek!G7=0), 0,'Krokový výpočet'!C14/(2*SQRT(Výsledek!G6*'Krokový výpočet'!E6)))","v":0},{"$f":"IF(OR('Zadáváni údajů'!G17=\"\",'Zadáváni údajů'!G17=0,Výsledek!G7=0), 0,'Krokový výpočet'!C14/(2*SQRT(Výsledek!G6*'Krokový výpočet'!F6)))","v":0},{"$f":"IF(OR('Zadáváni údajů'!G17=\"\",'Zadáváni údajů'!G17=0,Výsledek!G7=0), 0,'Krokový výpočet'!C14/(2*SQRT(Výsledek!G6*'Krokový výpočet'!G6)))","v":0},{"$f":"IF(OR('Zadáváni údajů'!G17=\"\",'Zadáváni údajů'!G17=0,Výsledek!G7=0), 0,'Krokový výpočet'!C14/(2*SQRT(Výsledek!G6*'Krokový výpočet'!H6)))","v":0},{"$f":"IF(OR('Zadáváni údajů'!G17=\"\",'Zadáváni údajů'!G17=0,Výsledek!G7=0), 0,'Krokový výpočet'!C14/(2*SQRT(Výsledek!G6*'Krokový výpočet'!I6)))","v":0},{"$f":"IF(OR('Zadáváni údajů'!G17=\"\",'Zadáváni údajů'!G17=0,Výsledek!G7=0), 0,'Krokový výpočet'!C14/(2*SQRT(Výsledek!G6*'Krokový výpočet'!J6)))","v":0},{"$f":"IF(OR('Zadáváni údajů'!G17=\"\",'Zadáváni údajů'!G17=0,Výsledek!G7=0), 0,'Krokový výpočet'!C14/(2*SQRT(Výsledek!G6*'Krokový výpočet'!K6)))","v":0},{"$f":"IF(OR('Zadáváni údajů'!G17=\"\",'Zadáváni údajů'!G17=0,Výsledek!G7=0), 0,'Krokový výpočet'!C14/(2*SQRT(Výsledek!G6*'Krokový výpočet'!L6)))","v":0},{"$f":"IF(OR('Zadáváni údajů'!G17=\"\",'Zadáváni údajů'!G17=0,Výsledek!G7=0), 0,'Krokový výpočet'!C14/(2*SQRT(Výsledek!G6*'Krokový výpočet'!M6)))","v":0}]
[null,null,"x₈",{"$f":"IF(OR('Zadáváni údajů'!G17=\"\",'Zadáváni údajů'!G17=0,Výsledek!G7=0), 0,'Krokový výpočet'!C15/(2*SQRT(Výsledek!G6*'Krokový výpočet'!D6)))","v":0},{"$f":"IF(OR('Zadáváni údajů'!G17=\"\",'Zadáváni údajů'!G17=0,Výsledek!G7=0), 0,'Krokový výpočet'!C15/(2*SQRT(Výsledek!G6*'Krokový výpočet'!E6)))","v":0},{"$f":"IF(OR('Zadáváni údajů'!G17=\"\",'Zadáváni údajů'!G17=0,Výsledek!G7=0), 0,'Krokový výpočet'!C15/(2*SQRT(Výsledek!G6*'Krokový výpočet'!F6)))","v":0},{"$f":"IF(OR('Zadáváni údajů'!G17=\"\",'Zadáváni údajů'!G17=0,Výsledek!G7=0), 0,'Krokový výpočet'!C15/(2*SQRT(Výsledek!G6*'Krokový výpočet'!G6)))","v":0},{"$f":"IF(OR('Zadáváni údajů'!G17=\"\",'Zadáváni údajů'!G17=0,Výsledek!G7=0), 0,'Krokový výpočet'!C15/(2*SQRT(Výsledek!G6*'Krokový výpočet'!H6)))","v":0},{"$f":"IF(OR('Zadáváni údajů'!G17=\"\",'Zadáváni údajů'!G17=0,Výsledek!G7=0), 0,'Krokový výpočet'!C15/(2*SQRT(Výsledek!G6*'Krokový výpočet'!I6)))","v":0},{"$f":"IF(OR('Zadáváni údajů'!G17=\"\",'Zadáváni údajů'!G17=0,Výsledek!G7=0), 0,'Krokový výpočet'!C15/(2*SQRT(Výsledek!G6*'Krokový výpočet'!J6)))","v":0},{"$f":"IF(OR('Zadáváni údajů'!G17=\"\",'Zadáváni údajů'!G17=0,Výsledek!G7=0), 0,'Krokový výpočet'!C15/(2*SQRT(Výsledek!G6*'Krokový výpočet'!K6)))","v":0},{"$f":"IF(OR('Zadáváni údajů'!G17=\"\",'Zadáváni údajů'!G17=0,Výsledek!G7=0), 0,'Krokový výpočet'!C15/(2*SQRT(Výsledek!G6*'Krokový výpočet'!L6)))","v":0},{"$f":"IF(OR('Zadáváni údajů'!G17=\"\",'Zadáváni údajů'!G17=0,Výsledek!G7=0), 0,'Krokový výpočet'!C15/(2*SQRT(Výsledek!G6*'Krokový výpočet'!M6)))","v":0}]
[null,null,"x₉",{"$f":"IF(OR('Zadáváni údajů'!G17=\"\",'Zadáváni údajů'!G17=0,Výsledek!G7=0), 0,'Krokový výpočet'!C16/(2*SQRT(Výsledek!G6*'Krokový výpočet'!D6)))","v":0},{"$f":"IF(OR('Zadáváni údajů'!G17=\"\",'Zadáváni údajů'!G17=0,Výsledek!G7=0), 0,'Krokový výpočet'!C16/(2*SQRT(Výsledek!G6*'Krokový výpočet'!E6)))","v":0},{"$f":"IF(OR('Zadáváni údajů'!G17=\"\",'Zadáváni údajů'!G17=0,Výsledek!G7=0), 0,'Krokový výpočet'!C16/(2*SQRT(Výsledek!G6*'Krokový výpočet'!F6)))","v":0},{"$f":"IF(OR('Zadáváni údajů'!G17=\"\",'Zadáváni údajů'!G17=0,Výsledek!G7=0), 0,'Krokový výpočet'!C16/(2*SQRT(Výsledek!G6*'Krokový výpočet'!G6)))","v":0},{"$f":"IF(OR('Zadáváni údajů'!G17=\"\",'Zadáváni údajů'!G17=0,Výsledek!G7=0), 0,'Krokový výpočet'!C16/(2*SQRT(Výsledek!G6*'Krokový výpočet'!H6)))","v":0},{"$f":"IF(OR('Zadáváni údajů'!G17=\"\",'Zadáváni údajů'!G17=0,Výsledek!G7=0), 0,'Krokový výpočet'!C16/(2*SQRT(Výsledek!G6*'Krokový výpočet'!I6)))","v":0},{"$f":"IF(OR('Zadáváni údajů'!G17=\"\",'Zadáváni údajů'!G17=0,Výsledek!G7=0), 0,'Krokový výpočet'!C16/(2*SQRT(Výsledek!G6*'Krokový výpočet'!J6)))","v":0},{"$f":"IF(OR('Zadáváni údajů'!G17=\"\",'Zadáváni údajů'!G17=0,Výsledek!G7=0), 0,'Krokový výpočet'!C16/(2*SQRT(Výsledek!G6*'Krokový výpočet'!K6)))","v":0},{"$f":"IF(OR('Zadáváni údajů'!G17=\"\",'Zadáváni údajů'!G17=0,Výsledek!G7=0), 0,'Krokový výpočet'!C16/(2*SQRT(Výsledek!G6*'Krokový výpočet'!L6)))","v":0},{"$f":"IF(OR('Zadáváni údajů'!G17=\"\",'Zadáváni údajů'!G17=0,Výsledek!G7=0), 0,'Krokový výpočet'!C16/(2*SQRT(Výsledek!G6*'Krokový výpočet'!M6)))","v":0}]